bitfinex-derivatives/quotes_SOLF0:USTF0_20260116
["timestamp","ask_amount","ask_price","bid_price","bid_amount"]
[1768601814396,5.20832271,144.95,144.89,16.15780185]
[1768601814595,7.91939792,144.96,144.89,16.15780185]
[1768601814806,5.20832108,144.95,144.89,16.15780185]
[1768601815006,7.91939792,144.96,144.89,16.15780185]
[1768601815211,5.2086771,144.95,144.89,16.15780185]
[1768601815506,1.70799792,144.96,144.89,16.15780185]
[1768601815709,5.20814613,144.95,144.89,16.15780185]
[1768601816007,9.83809365,144.97,144.89,16.15780185]
[1768601816203,5.20852435,144.96,144.89,16.15780185]
[1768601816401,5.20852435,144.95,144.89,16.15780185]
[1768601816601,9.83809365,144.97,144.9,15.83813207]
[1768601816910,5.20835278,144.96,144.9,15.83813207]
[1768601817206,9.83809365,144.97,144.9,15.83813207]
[1768601817808,9.83809365,144.97,144.91,15.83813207]
[1768601818509,7.91889792,144.98,144.91,15.83813207]
[1768601818710,5.20667021,144.97,144.91,15.83813207]
[1768601818898,17.75496399,144.98,144.91,15.83813207]
[1768601819102,1.70799792,144.96,144.91,15.83813207]
[1768601826819,17.75027937,145.0,144.91,15.83813207]
[1768601827020,5.29752541,144.99,144.91,15.83813207]
[1768601827315,1.70799792,144.98,144.91,15.83813207]
[1768601827816,1.70799792,144.98,144.93,15.83813207]
[1768601828619,1.70799792,145.0,144.93,15.83813207]
[1768601829617,1.70799792,144.98,144.93,15.83813207]
[1768601830010,1.70799792,144.98,144.93,22.05063207]
[1768601830216,1.70799792,144.98,144.94,15.83813207]
[1768601832516,6.2092,145.01,144.94,15.83813207]
[1768601832821,1.70799792,145.0,144.94,15.83813207]
[1768601833218,1.70799792,144.98,144.94,15.83813207]
[1768601833414,1.70799792,144.96,144.92,15.83813207]
[1768601833810,1.70799792,144.96,144.85,260.9]
[1768601834120,1.70799792,144.94,144.85,260.9]
[1768601834524,1.70799792,144.96,144.86,98.39149792]
[1768601834716,1.70799792,144.96,144.87,96.6806]
[1768601835019,17.60089978,145.0,144.89,96.6672]
[1768601835322,17.60089978,145.0,144.9,1.70799792]
[1768601835819,17.60089978,145.0,144.93,6.2126]
[1768601836025,17.60089978,145.0,144.94,15.83813207]
[1768601836221,1.70799792,145.0,144.94,15.83813207]
[1768601836626,1.70799792,145.0,144.94,22.05033207]
[1768601836825,1.70799792,145.0,144.95,15.83813207]
[1768601837923,1.70799792,145.01,144.95,15.83813207]
[1768601838726,15.89290186,145.02,144.95,15.83813207]
[1768601838917,1.70799792,145.01,144.95,15.83813207]
[1768601839119,1.70799792,145.01,144.95,22.04993207]
[1768601839319,1.70799792,145.01,144.96,15.83813207]
[1768601839615,15.89290186,145.05,144.97,6.2107]
[1768601839822,15.89290186,145.05,144.96,15.83813207]
[1768601839823,1.70799792,145.06,144.98,15.83813207]
[1768601840323,1.70799792,145.06,144.99,6.21]
[1768601840526,1.70799792,145.06,145.0,15.83813207]
[1768601843423,15.01958029,145.09,145.0,15.83813207]
[1768601843730,1.70799792,145.08,145.02,16.45263686]
[1768601844123,1.70799792,145.07,145.02,16.45263686]
[1768601844427,16.72757821,145.09,145.02,16.45263686]
[1768601844635,16.72757821,145.11,145.03,16.45263686]
[1768601845028,1.70799792,145.11,145.03,16.45263686]
[1768601845531,16.72757821,145.13,145.04,16.45263686]
[1768601845726,1.70799792,145.11,145.04,16.45263686]
[1768601847034,1.70799792,145.11,145.05,16.45263686]
[1768601847638,1.70799792,145.09,145.05,16.45263686]
[1768601853238,1.70799792,145.07,145.01,16.24379601]
[1768601853739,1.70799792,145.05,145.01,16.24379601]
[1768601854335,1.70799792,145.05,144.98,6.2102]
[1768601854336,1.70799792,145.05,144.99,16.24379601]
[1768601855336,1.70799792,145.03,145.01,0.04435425]
[1768601855532,1.75182071,145.03,144.97,16.24379601]
[1768601857745,1.75182071,145.03,144.97,22.45459601]
[1768601857947,1.75182071,145.03,144.98,16.24379601]
[1768601864350,1.70799792,145.01,144.95,6.2114]
[1768601864757,16.79910016,145.04,144.93,1.70799792]
[1768601864958,23.00710016,145.04,144.96,6.2113]
[1768601866259,23.00710016,145.04,144.97,16.24379601]
[1768601866647,21.29910224,145.04,144.97,16.24379601]
[1768601867051,21.29850224,145.06,144.98,16.24379601]
[1768601872159,16.51755357,145.04,144.98,16.24379601]
[1768601872364,18.22555149,145.03,144.96,16.47218299]
[1768601873260,18.22416994,145.03,144.96,16.47218299]
[1768601875668,1.70661637,145.01,144.96,16.47218299]
[1768601878566,0.05034662,145.0,144.96,16.47218299]
[1768601879671,1.75696299,145.0,144.96,16.47218299]
[1768601879970,16.51755357,145.1,145.02,16.47218299]
[1768601880167,18.22416994,145.07,144.97,16.51669122]
[1768601880372,1.70661637,145.05,144.97,16.51669122]
[1768601880572,1.70661637,145.05,144.97,16.47218299]
[1768601880772,1.70661637,145.05,144.97,18.17879936]
[1768601880972,16.51755357,145.06,144.97,18.17879936]
[1768601881175,16.51755357,145.06,144.99,18.17879936]
[1768601881472,16.51755357,145.06,145.0,16.5203588]
[1768601881973,16.51755357,145.06,145.0,18.22697517]
[1768601889871,16.51755357,145.06,145.0,16.5203588]
[1768601890071,18.22416994,145.06,145.0,16.5203588]
[1768601891781,18.22416994,145.06,145.0,16.5203588]
[1768601893782,16.51755357,145.05,145.0,16.5203588]
[1768601895779,16.51755357,145.03,144.96,1.70661637]
[1768601896084,18.22416994,145.03,144.95,16.47218299]
[1768601896382,16.51755357,145.03,144.96,1.70661637]
[1768601897775,22.72605357,145.03,144.96,1.70661637]
[1768601899081,22.72605357,145.03,144.96,18.17879936]
[1768601904780,17.55675451,145.02,144.96,16.47218299]
[1768601907990,17.55675451,145.02,144.97,1.70661637]
[1768601910187,16.90171602,145.04,144.99,1.70661637]
[1768601910684,5.34891259,145.03,144.99,1.70661637]
[1768601910878,16.90171602,145.04,144.99,1.70661637]
[1768601911083,5.34891259,145.03,144.99,1.70661637]
[1768601911284,16.90171602,145.04,144.97,24.07153272]
[1768601911485,5.34889069,145.03,144.99,1.70661637]
[1768601911693,16.90171602,145.03,144.99,1.70661637]
[1768601915891,16.90171602,145.03,144.97,19.56724909]
[1768601926499,16.90171602,145.03,144.97,17.86063272]
[1768601928298,5.35307365,145.02,144.97,17.86063272]
[1768601928500,16.90171602,145.03,144.97,17.86063272]
[1768601928798,5.35432525,145.02,144.97,17.86063272]
[1768601929101,16.90171602,145.03,144.97,17.86063272]
[1768601929300,5.35457196,145.02,144.97,17.86063272]
[1768601929503,16.90171602,145.03,144.97,17.86063272]
[1768601929802,5.35480404,145.02,144.97,17.86063272]
[1768601930001,16.90171602,145.03,144.97,17.86063272]
[1768601930200,5.35477471,145.02,144.97,17.86063272]
[1768601930402,16.90171602,145.03,144.97,17.86063272]
[1768601930701,5.35578212,145.02,144.97,17.86063272]
[1768601930901,16.90171602,145.03,144.97,17.86063272]
[1768601931103,5.35581501,145.02,144.97,17.86063272]
[1768601931297,16.90171602,145.03,144.97,17.86063272]
[1768601931496,5.35653574,145.02,144.97,17.86063272]
[1768601931696,16.90171602,145.03,144.97,17.86063272]
[1768601931893,5.35655327,145.02,144.97,17.86063272]
[1768601932095,16.90171602,145.03,144.97,17.86063272]
[1768601932388,5.35654039,145.02,144.97,17.86063272]
[1768601932589,16.90171602,145.03,144.97,17.86063272]
[1768601932798,5.35716738,145.02,144.97,17.86063272]
[1768601933094,16.90171602,145.03,144.97,17.86063272]
[1768601933290,5.35716738,145.02,144.97,17.86063272]
[1768601933497,16.90171602,145.03,144.97,17.86063272]
[1768601933697,5.35768784,145.02,144.97,17.86063272]
[1768601933899,16.90171602,145.03,144.97,17.86063272]
[1768601934102,5.35765494,145.02,144.97,17.86063272]
[1768601934298,5.35828919,145.01,144.97,17.86063272]
[1768601934495,16.90171602,145.03,144.97,17.86063272]
[1768601934705,5.35827631,145.02,144.97,17.86063272]
[1768601934896,5.35827631,145.01,144.97,17.86063272]
[1768601935096,16.90171602,145.03,144.97,17.86063272]
[1768601935296,5.35889425,145.02,144.97,17.86063272]
[1768601935497,5.35889425,145.01,144.97,17.86063272]
[1768601935700,16.90171602,145.03,144.97,17.86063272]
[1768601935902,5.36022064,145.02,144.97,17.86063272]
[1768601936100,5.36022064,145.01,144.97,17.86063272]
[1768601936301,16.90171602,145.03,144.97,17.86063272]
[1768601936590,5.36071063,145.02,144.97,17.86063272]
[1768601936791,5.36071063,145.01,144.97,17.86063272]
[1768601936996,16.90171602,145.03,144.97,17.86063272]
[1768601937307,5.35927441,145.02,144.97,17.86063272]
[1768601937603,5.35927441,145.01,144.97,17.86063272]
[1768601937907,16.90171602,145.03,144.97,17.86063272]
[1768601938105,5.36013842,145.02,144.97,17.86063272]
[1768601938306,5.36013842,145.01,144.97,17.86063272]
[1768601938498,16.90171602,145.03,144.97,17.86063272]
[1768601938698,5.36121025,145.02,144.97,17.86063272]
[1768601938904,5.36121025,145.01,144.97,17.86063272]
[1768601939105,16.90171602,145.03,144.97,17.86063272]
[1768601939300,5.36122313,145.02,144.97,17.86063272]
[1768601939602,5.36122313,145.01,144.97,17.86063272]
[1768601939913,16.90171602,145.03,144.97,17.86063272]
[1768601940203,18.70744521,145.01,144.95,17.13127809]
[1768601940396,1.70625569,145.05,144.89,327.91296201]
[1768601940397,20.4137009,144.99,144.92,17.13127809]
[1768601940601,20.4137009,144.99,144.9,18.83753378]
[1768601940807,24.00396148,144.98,144.9,18.83753378]
[1768601941003,18.70744521,144.98,144.9,18.83753378]
[1768601941909,18.70744521,144.98,144.91,23.34477809]
[1768601944915,0.04929518,144.96,144.91,23.34477809]
[1768601946818,0.04929518,144.96,144.92,17.13127809]
[1768601951711,18.75674039,144.96,144.9,18.83753378]
[1768601951911,18.75674039,144.96,144.9,17.13127809]
[1768601954112,18.75674039,144.96,144.9,18.83753378]
[1768601955719,18.70744521,144.94,144.88,18.83753378]
[1768601955909,18.75674039,144.96,144.92,1.70625569]
[1768601956216,18.70744521,144.96,144.92,1.70625569]
[1768601956410,18.70744521,144.96,144.89,18.83753378]
[1768601956815,18.70744521,144.96,144.9,23.34507809]
[1768601960219,18.70744521,144.96,144.9,17.13127809]
[1768601964525,24.91884521,144.96,144.9,17.13127809]
[1768601964824,24.91884521,144.96,144.88,18.56459003]
[1768601964825,18.2346591,144.95,144.88,18.56459003]
[1768601965017,96.6133,144.98,144.86,18.56459003]
[1768601965018,18.2346591,144.93,144.86,18.56459003]
[1768601965216,18.2346591,144.93,144.86,24.78019003]
[1768601965420,6.2123,144.94,144.87,18.56459003]
[1768601966418,24.4469591,144.94,144.87,18.56459003]
[1768601967922,26.15321479,144.94,144.87,18.56459003]
[1768601969424,18.2346591,144.93,144.87,18.56459003]
[1768601971924,0.04849764,144.91,144.87,18.56459003]
[1768601976622,19.70417284,144.9,144.84,18.71390881]
[1768601978024,0.04804199,144.88,144.84,18.71390881]
[1768601979825,0.04804199,144.88,144.85,0.05305305]
[1768601998944,0.04804199,144.88,144.84,18.71390881]
[1768602014853,6.26284199,144.88,144.84,18.71390881]
[1768602016951,18.60129764,144.88,144.81,1.70944265]
[1768602017256,5.06939181,144.87,144.81,1.70944265]
[1768602017450,18.60129764,144.88,144.81,1.70944265]
[1768602017650,6.2152,144.87,144.81,1.70944265]
[1768602018550,6.2157,144.86,144.81,1.70944265]
[1768602018848,6.2157,144.86,144.81,13.41359402]
[1768602019454,0.05016402,144.85,144.81,13.41359402]
[1768602023659,0.05016402,144.85,144.81,11.70415137]
[1768602030159,17.90522096,144.85,144.79,19.63800955]
[1768602030358,17.90522096,144.85,144.8,11.7099669]
[1768602031161,0.05016402,144.85,144.8,11.7099669]
[1768602051690,5.14680399,144.84,144.8,11.7099669]
[1768602051878,0.05016402,144.85,144.8,11.7099669]
[1768602052081,5.14680245,144.84,144.8,11.7099669]
[1768602052278,0.05016402,144.85,144.8,11.7099669]
[1768602052588,5.14685796,144.84,144.8,11.7099669]
[1768602052886,0.05016402,144.85,144.8,11.7099669]
[1768602053087,5.14685796,144.84,144.8,11.7099669]
[1768602053286,6.26626402,144.85,144.8,11.7099669]
[1768602053486,5.14698048,144.84,144.8,11.7099669]
[1768602053687,6.26626402,144.85,144.8,11.7099669]
[1768602053883,5.14699282,144.84,144.8,11.7099669]
[1768602054189,6.26626402,144.85,144.8,11.7099669]
[1768602054383,5.14719266,144.84,144.8,11.7099669]
[1768602054582,6.26626402,144.85,144.8,11.7099669]
[1768602054789,5.14719266,144.84,144.8,11.7099669]
[1768602054990,6.26626402,144.85,144.8,11.7099669]
[1768602055289,5.14719266,144.84,144.8,11.7099669]
[1768602055489,7.97709331,144.85,144.8,11.7099669]
[1768602055690,5.14745227,144.84,144.8,11.7099669]
[1768602055991,7.97709331,144.85,144.8,11.7099669]
[1768602056182,5.14745227,144.84,144.8,11.7099669]
[1768602056382,7.97709331,144.85,144.8,11.7099669]
[1768602056684,5.1462366,144.84,144.8,11.7099669]
[1768602056883,7.97709331,144.85,144.8,11.7099669]
[1768602057391,5.14859822,144.84,144.8,11.7099669]
[1768602057585,7.97709331,144.85,144.8,11.7099669]
[1768602057785,5.14859822,144.84,144.8,11.7099669]
[1768602057985,7.97709331,144.85,144.8,11.7099669]
[1768602058186,5.14920449,144.84,144.8,11.7099669]
[1768602058388,7.97709331,144.85,144.8,11.7099669]
[1768602058586,5.14911765,144.84,144.8,11.7099669]
[1768602058785,7.97709331,144.85,144.8,11.7099669]
[1768602059085,5.14911765,144.84,144.8,11.7099669]
[1768602059393,26.99711831,144.85,144.8,11.7099669]
[1768602059692,5.15010463,144.84,144.79,11.58399526]
[1768602059892,26.99711831,144.85,144.79,11.58399526]
[1768602060194,5.15011661,144.84,144.79,11.58399526]
[1768602060492,6.2166,144.84,144.79,11.58399526]
[1768602060690,5.3779971,144.83,144.79,11.58399526]
[1768602060890,5.3779971,144.82,144.79,11.58399526]
[1768602061090,6.2166,144.84,144.79,11.58399526]
[1768602061291,5.37836331,144.83,144.79,11.58399526]
[1768602061492,5.37836331,144.82,144.79,11.58399526]
[1768602061690,0.04450939,144.83,144.79,11.58399526]
[1768602061889,5.37833757,144.82,144.79,11.58399526]
[1768602062088,6.26150939,144.83,144.79,11.58399526]
[1768602062292,5.37833401,144.82,144.79,11.58399526]
[1768602063395,20.73085429,144.81,144.74,11.57167819]
[1768602063590,20.73085429,144.78,144.69,11.57167819]
[1768602064093,26.94995429,144.78,144.7,11.57167819]
[1768602064294,19.020025,144.84,144.76,11.56868684]
[1768602064490,5.39479518,144.83,144.77,13.27951613]
[1768602064691,5.39479518,144.82,144.77,13.27951613]
[1768602064892,5.39479518,144.81,144.77,13.27951613]
[1768602065093,0.0527202,144.81,144.77,13.27951613]
[1768602065490,6.2169,144.84,144.78,0.04813523]
[1768602065691,5.4683867,144.83,144.79,11.51300964]
[1768602065993,5.4683867,144.82,144.79,11.51300964]
[1768602066196,6.2169,144.84,144.79,11.51300964]
[1768602066392,5.46829386,144.83,144.79,11.51300964]
[1768602066592,5.46829386,144.82,144.79,11.51300964]
[1768602066793,6.2169,144.84,144.79,11.51300964]
[1768602066995,0.05007555,144.82,144.79,11.51300964]
[1768602072398,0.05007555,144.82,144.78,0.04813523]
[1768602072903,0.05007555,144.82,144.78,11.54131626]
[1768602074909,5.46671288,144.81,144.78,11.54131626]
[1768602075107,0.05007555,144.82,144.78,11.54131626]
[1768602075403,5.46663117,144.81,144.78,11.54131626]
[1768602075600,0.05007555,144.82,144.78,11.54131626]
[1768602075795,5.46661799,144.81,144.78,11.54131626]
[1768602075998,0.05007555,144.82,144.78,11.54131626]
[1768602076199,5.46652466,144.81,144.78,11.54131626]
[1768602076398,0.05007555,144.82,144.78,11.54131626]
[1768602076602,5.46656594,144.81,144.78,11.54131626]
[1768602076802,0.05007555,144.82,144.78,11.54131626]
[1768602077102,5.46659996,144.81,144.78,11.54131626]
[1768602077298,0.05007555,144.82,144.78,11.54131626]
[1768602077501,5.46654532,144.81,144.78,11.54131626]
[1768602077706,0.05007555,144.82,144.78,11.54131626]
[1768602077906,5.46762419,144.81,144.78,11.54131626]
[1768602078203,0.05007555,144.82,144.78,11.54131626]
[1768602078392,5.46806407,144.81,144.78,11.54131626]
[1768602078597,0.05007555,144.82,144.78,11.54131626]
[1768602078806,5.46806731,144.81,144.78,11.54131626]
[1768602078994,0.05007555,144.82,144.78,11.54131626]
[1768602079199,5.46806731,144.81,144.78,11.54131626]
[1768602079404,0.05007555,144.82,144.78,11.54131626]
[1768602079601,5.46817935,144.81,144.78,11.54131626]
[1768602079803,0.05007555,144.82,144.78,11.54131626]
[1768602080004,5.46817935,144.81,144.78,11.54131626]
[1768602080204,0.05007555,144.82,144.78,11.54131626]
[1768602080410,5.46832387,144.81,144.78,11.54131626]
[1768602080710,0.05007555,144.82,144.78,11.54131626]
[1768602093931,6.216,144.86,144.8,11.4364631]
[1768602094132,5.23269222,144.85,144.8,11.4364631]
[1768602094329,6.216,144.86,144.8,11.4364631]
[1768602094529,5.23291003,144.85,144.8,11.4364631]
[1768602094830,6.216,144.86,144.8,11.4364631]
[1768602095032,5.23240484,144.85,144.8,11.4364631]
[1768602095230,6.216,144.86,144.8,11.4364631]
[1768602095423,5.23215029,144.85,144.81,11.48530614]
[1768602095630,6.216,144.86,144.81,11.48530614]
[1768602095829,5.23235359,144.85,144.81,11.48530614]
[1768602096133,5.23250969,144.84,144.81,11.48530614]
[1768602096332,6.216,144.86,144.81,11.48530614]
[1768602096628,5.23249461,144.85,144.81,11.48530614]
[1768602096834,6.216,144.86,144.81,11.48530614]
[1768602097034,5.23249461,144.85,144.81,11.48530614]
[1768602097235,6.216,144.86,144.81,11.48530614]
[1768602097534,5.23278258,144.85,144.81,11.48530614]
[1768602097736,6.216,144.86,144.81,11.48530614]
[1768602097936,5.23279503,144.85,144.81,11.48530614]
[1768602098238,6.216,144.86,144.81,11.48530614]
[1768602098536,5.23272009,144.85,144.81,11.48530614]
[1768602098731,6.216,144.86,144.81,11.48530614]
[1768602098929,5.23272675,144.85,144.81,11.48530614]
[1768602099130,6.216,144.86,144.81,11.48530614]
[1768602099330,5.23264877,144.85,144.81,11.48530614]
[1768602099530,6.216,144.86,144.81,11.48530614]
[1768602099836,5.23264877,144.85,144.81,11.48530614]
[1768602100027,6.216,144.86,144.81,11.48530614]
[1768602100231,5.23339992,144.85,144.81,11.48530614]
[1768602100431,6.216,144.86,144.81,11.48530614]
[1768602100634,5.23341607,144.85,144.81,11.48530614]
[1768602100836,6.216,144.86,144.81,11.48530614]
[1768602101046,5.23343523,144.85,144.81,11.48530614]
[1768602101330,6.216,144.86,144.81,11.48530614]
[1768602101537,5.23345041,144.85,144.81,11.48530614]
[1768602101738,6.216,144.86,144.81,11.48530614]
[1768602101938,5.23345041,144.85,144.81,11.48530614]
[1768602102135,6.216,144.86,144.81,11.48530614]
[1768602102342,5.23354854,144.85,144.81,11.48530614]
[1768602102542,5.23354854,144.84,144.81,11.48530614]
[1768602102743,6.216,144.86,144.81,11.48530614]
[1768602102944,5.23353856,144.85,144.81,11.48530614]
[1768602103143,6.216,144.86,144.81,11.48530614]
[1768602103343,5.23351381,144.85,144.81,11.48530614]
[1768602103549,5.23351381,144.84,144.81,11.48530614]
[1768602103844,6.216,144.86,144.81,11.48530614]
[1768602104040,5.23351381,144.85,144.81,11.48530614]
[1768602104242,5.23351381,144.84,144.81,11.48530614]
[1768602104542,6.216,144.86,144.81,11.48530614]
[1768602104738,5.23348915,144.85,144.81,11.48530614]
[1768602104934,5.23348915,144.84,144.81,11.48530614]
[1768602105139,6.216,144.86,144.81,11.48530614]
[1768602105341,5.2331332,144.85,144.81,11.48530614]
[1768602105537,5.2331332,144.84,144.81,11.48530614]
[1768602105742,6.216,144.86,144.81,11.48530614]
[1768602106042,5.23331191,144.85,144.81,11.48530614]
[1768602106335,5.23331191,144.84,144.81,11.48530614]
[1768602106542,6.216,144.86,144.81,11.48530614]
[1768602106743,5.23314533,144.85,144.81,11.48530614]
[1768602106943,5.23314533,144.84,144.81,11.48530614]
[1768602107144,6.216,144.86,144.81,11.48530614]
[1768602107345,5.23323267,144.85,144.81,11.48530614]
[1768602107644,5.23323267,144.84,144.81,11.48530614]
[1768602107843,6.216,144.86,144.81,11.48530614]
[1768602108147,5.23321501,144.85,144.81,11.48530614]
[1768602108348,5.23321501,144.84,144.81,11.48530614]
[1768602108552,6.216,144.86,144.81,11.48530614]
[1768602108847,5.23329345,144.85,144.81,11.48530614]
[1768602109043,6.216,144.86,144.81,11.48530614]
[1768602109044,5.23329345,144.84,144.81,11.48530614]
[1768602109240,6.216,144.86,144.81,11.48530614]
[1768602109439,5.23543407,144.85,144.81,11.48530614]
[1768602109754,6.216,144.86,144.81,11.48530614]
[1768602109937,5.02379243,144.85,144.81,11.48530614]
[1768602110137,6.216,144.86,144.81,11.48530614]
[1768602110841,5.02369973,144.85,144.81,11.48530614]
[1768602111045,6.216,144.86,144.81,11.48530614]
[1768602111838,271.28639555,144.9,144.81,11.48530614]
[1768602111839,20.97926031,144.89,144.81,11.48530614]
[1768602112042,5.02391508,144.88,144.81,11.48530614]
[1768602112246,5.02391508,144.87,144.81,11.48530614]
[1768602112448,20.97926031,144.89,144.81,11.43230893]
[1768602112648,6.2152,144.87,144.81,11.43230893]
[1768602112853,6.2152,144.87,144.83,0.04938448]
[1768602113751,19.26843102,144.88,144.83,0.04938448]
[1768602113946,1.71082929,144.87,144.83,0.04938448]
[1768602114153,6.73475589,144.87,144.83,0.04938448]
[1768602114451,1.71082929,144.87,144.83,0.04938448]
[1768602117356,20.97839708,144.88,144.83,0.04938448]
[1768602120657,27.19329708,144.88,144.83,0.04938448]
[1768602123959,25.48263102,144.9,144.83,11.44359435]
[1768602124159,1.70996606,144.89,144.83,11.44359435]
[1768602124549,1.70996606,144.89,144.83,11.39420987]
[1768602124863,1.70996606,144.89,144.85,0.04751164]
[1768602126058,1.70996606,144.9,144.85,11.43881688]
[1768602126861,1.70996606,144.91,144.85,11.43881688]
[1768602127863,1.70996606,144.91,144.86,11.38846696]
[1768602134571,20.97839708,144.92,144.86,11.38846696]
[1768602140472,19.26843102,144.92,144.86,11.38846696]
[1768602146376,21.07603896,144.91,144.85,0.04751164]
[1768602148063,21.07603896,144.91,144.85,11.39283442]
[1768602149170,21.07603896,144.87,144.79,11.3917406]
[1768602150868,21.07603896,144.87,144.81,11.40327845]
[1768602155878,21.07603896,144.87,144.81,17.62097845]
[1768602156671,21.07603896,144.87,144.82,11.39722633]
[1768602156672,1.70996606,144.87,144.82,11.39722633]
[1768602156869,20.76195284,144.89,144.82,11.39722633]
[1768602158074,20.76195284,144.89,144.83,6.2168]
[1768602158476,20.76195284,144.89,144.83,17.61211341]
[1768602163586,20.76195284,144.89,144.81,17.60822007]
[1768602164084,20.76195284,144.89,144.82,6.2174]
[1768602164279,20.76195284,144.89,144.82,17.60723282]
[1768602169185,19.05198678,144.88,144.8,11.38554708]
[1768602169390,19.05198678,144.86,144.8,11.38554708]
[1768602170389,19.05198678,144.86,144.8,17.60374708]
[1768602172091,6.2152,144.87,144.81,17.60283703]
[1768602172293,24.16238974,144.87,144.81,17.60283703]
[1768602173192,6.215,144.88,144.82,11.38354685]
[1768602174095,24.16218974,144.88,144.82,11.38354685]
[1768602174497,17.94718974,144.88,144.83,11.38276544]
[1768602175991,17.94718974,144.88,144.83,17.59966544]
[1768602199110,0.04833347,144.87,144.83,17.59966544]
[1768602201616,0.04833347,144.87,144.84,0.04408657]
[1768602214138,18.0689917,144.9,144.84,11.40363917]
[1768602215937,18.0689917,144.9,144.84,17.62013917]
[1768602228237,24.2820917,144.92,144.85,11.35329838]
[1768602229140,24.2820917,144.92,144.87,0.05119261]
[1768602231449,18.7595903,144.91,144.87,0.05119261]
[1768602234249,20.46897059,144.91,144.87,0.05119261]
[1768602234552,26.68257059,144.91,144.85,11.35329838]
[1768602234947,18.7595903,144.9,144.85,11.35329838]
[1768602235754,18.7595903,144.9,144.84,6.2161]
[1768602236449,18.7595903,144.9,144.84,17.55866302]
[1768602237351,18.7595903,144.9,144.85,6.2161]
[1768602239054,18.7595903,144.9,144.85,17.5579382]
[1768602240057,18.7595903,144.9,144.86,6.2155]
[1768602240261,18.7595903,144.92,144.86,6.2155]
[1768602240552,18.7595903,144.94,144.86,11.34112995]
[1768602240757,18.7595903,144.94,144.89,6.2143]
[1768602252560,18.7595903,144.94,144.88,6.2148]
[1768602263584,18.7595903,144.94,144.88,6.2148]
[1768602267779,18.7595903,144.94,144.87,6.215]
[1768602267979,19.271403,144.92,144.85,250.80836296]
[1768602268185,19.271403,144.9,144.85,250.80836296]
[1768602268590,19.271403,144.9,144.86,6.2156]
[1768602271490,19.271403,144.9,144.85,11.33151778]
[1768602271491,19.271403,144.9,144.87,6.2152]
[1768602274898,1.70813297,144.92,144.88,6.2147]
[1768602276591,1.70813297,144.94,144.88,6.2147]
[1768602276898,18.31066424,144.93,144.88,6.2147]
[1768602291111,18.31066424,144.93,144.86,6.2153]
[1768602292812,18.57113045,144.92,144.86,6.2153]
[1768602293203,20.27926342,144.92,144.86,6.2153]
[1768602295710,18.57113045,144.89,144.84,25.04773268]
[1768602295902,18.57113045,144.89,144.84,18.83163268]
[1768602296815,18.57113045,144.89,144.85,6.2161]
[1768602300220,1.70813297,144.9,144.85,6.2161]
[1768602300716,20.27926342,144.9,144.85,6.2161]
[1768602301111,18.57113045,144.9,144.85,6.2161]
[1768602301313,20.27926342,144.94,144.87,18.5233815]
[1768602301620,18.57113045,144.94,144.87,18.5233815]
[1768602302110,0.04734659,144.92,144.87,18.5233815]
[1768602302818,0.04734659,144.92,144.87,24.7384815]
[1768602305212,18.61847704,144.92,144.87,24.7384815]
[1768602305413,18.61847704,144.92,144.83,96.7051]
[1768602305414,18.61847704,144.92,144.86,6.2156]
[1768602305818,18.57113045,144.9,144.83,18.5233815]
[1768602306821,18.57113045,144.9,144.84,6.2164]
[1768602311224,18.57113045,144.9,144.84,24.7397815]
[1768602316223,18.57113045,144.9,144.84,6.2164]
[1768602316828,20.27956309,144.89,144.82,6.2171]
[1768602317026,20.27956309,144.87,144.8,18.5233815]
[1768602317519,18.57113045,144.86,144.78,279.4833815]
[1768602318432,18.57113045,144.86,144.8,18.5233815]
[1768602318632,18.57113045,144.88,144.81,20.23181414]
[1768602319131,18.57113045,144.87,144.82,6.2173]
[1768602320831,18.57113045,144.87,144.83,6.2168]
[1768602322227,18.57113045,144.87,144.82,18.5233815]
[1768602324332,18.57113045,144.87,144.82,24.7406815]
[1768602328135,18.57113045,144.87,144.82,6.2173]
[1768602328333,18.57113045,144.87,144.82,7.92573264]
[1768602328733,18.57113045,144.87,144.82,25.79775515]
[1768602330737,24.56815576,144.89,144.83,19.21868066]
[1768602334029,18.35375576,144.89,144.84,1.70843264]
[1768602341842,18.35375576,144.89,144.83,25.43548066]
[1768602342039,18.35375576,144.89,144.84,1.70843264]
[1768602347645,18.35375576,144.89,144.84,7.92483264]
[1768602349743,18.35375576,144.96,144.88,1.70843264]
[1768602350247,18.35375576,144.93,144.9,1.70843264]
[1768602353546,18.91030893,144.95,144.9,1.70843264]
[1768602359447,18.91030893,144.95,144.89,24.44346681]
[1768602360354,18.91030893,144.95,144.89,6.2143]
[1768602373266,0.04694409,144.93,144.89,6.2143]
[1768602378883,25.12160893,144.97,144.9,24.44306681]
[1768602379173,25.12160893,144.97,144.9,24.48995209]
[1768602379568,18.91030893,144.96,144.9,18.27605209]
[1768602384571,25.12170893,144.96,144.9,18.27605209]
[1768602384769,17.82499068,144.95,144.9,18.27605209]
[1768602389390,17.82499068,144.95,144.9,0.04688528]